[Event "Czech Open-GM 2022"]
[Site "Pardubice"]
[Date "2022.07.23"]
[Round "2.9"]
[White "Pantzar, Milton"]
[Black "Chylewski, Patryk"]
[Result "1-0"]
[ECO "E46"]
[WhiteElo "2447"]
[BlackElo "2294"]
[Annotator "TA"]
[PlyCount "89"]
[EventDate "2022.07.22"]
[EventType "swiss"]
[EventCountry "CZE"]
[SourceTitle "playchess.com"]
[Source "ChessBase"]
[SourceQuality "1"]
[TimeControl "40/5400+30:1800+30"]

{[%evp 18,89,11,-1,15,31,41,40,48,53,47,15,22,26,35,24,66,46,86,73,98,0,0,0,0,-15,4,0,0,-32,-10,-36,-37,-45,-2,-6,-7,-11,-6,-33,-8,-25,19,16,12,23,12,6,6,-24,0,0,0,0,0,0,0,0,0,0,127,127,127,127,143,120,296,275,265,178,193,175,760,733]} 1. d4 {[%emt 0:01:06]} Nf6 {[%emt 0:00:06]} 2. c4 {[%emt 0:00:44]} e6 {[%emt 0:00:05]} 3. Nc3 {[%emt 0:00:21]} Bb4 {[%emt 0:00:06]} 4. e3 {[%emt 0:00:29]} O-O {[%emt 0:00:14]} 5. Bd2 {[%emt 0:00:14]} d5 {[%emt 0:00:44]} 6. Nf3 {[%emt 0:00:36]} Nbd7 {[%emt 0:04:15]} 7. Rc1 {[%emt 0:07:01]} b6 {[%emt 0:03:55]} 8. cxd5 {[%emt 0:02:48]} exd5 {[%emt 0:02:57]} 9. Bd3 {[%emt 0:13:44]} Bb7 10. O-O {[%emt 0:02:27]} a6 {[%emt 0:14:18] E52: Nimzo-Indian: Rubinstein: 4...0-0 5 Nf3 d5 6 Bd3 b6.} 11. Ne5 {[%emt 0:00:08]} Nxe5 {[%emt 0:20:45]} 12. dxe5 Bxc3 {[%emt 0:00:13] White is slightly better.} 13. Bxc3 {[%emt 0:06:50]} (13. bxc3 Ne4 $11) 13... Ne4 14. Bb4 {[%emt 0:07:49]} c5 {[%emt 0:01:32]} 15. Be1 {[#]} f5 $146 ({Predecessor:} 15... Qg5 16. f4 Qe7 17. Qh5 f5 18. Rd1 Qe6 19. Bxe4 fxe4 20. f5 Qxe5 21. Bc3 Qe8 {1-0 (40) Demidov,M (2564)-Lauber,A (2420) Germany 2019}) 16. b4 {[%emt 0:16:03]} Qe7 {[%emt 0:11:24]} 17. f3 {[%emt 0:05:13]} Ng5 {[%emt 0:02:26]} 18. bxc5 {[%emt 0:00:18]} bxc5 {[%emt 0:00:51][%cal Bb6c5,Bc5c4][%mdl 32] [#]} 19. Qc2 {[%emt 0:13:20]} (19. f4 $1 $16 {[%cal Rf4g5]} Ne4 20. Bxe4 fxe4 21. Qg4) 19... c4 $11 {[%emt 0:04:32]} 20. Bxf5 {[%emt 0:00:37] And now f4 would win.} Qxe5 {[%emt 0:00:44]} 21. Bg4 {[%emt 0:00:48]} Qxe3+ {[%emt 0:01:56]} 22. Bf2 {[%emt 0:00:17] A strong pair of Bishops.} Qf4 {[%emt 0:04:57]} 23. Rcd1 {[%emt 0:04:22]} Qf7 {[%emt 0:07:17]} 24. Qb2 {[%emt 0:06:15]} Bc8 {[%emt 0:03:59]} 25. Qe5 {[%emt 0:06:54]} h6 {[%emt 0:06:05] Black wants to play ...Bxg4.} 26. Bxc8 {[%emt 0:01:09]} Raxc8 {[%emt 0:00:33]} 27. Qxd5 {[%emt 0:01:42]} Ne6 {[%emt 0:01:31][%cal Bg5e6,Be6f8,Bf8g6,Bg6f4,Bf4d3][%mdl 32]} 28. Be3 {[%emt 0:01:18] Against Nf4} (28. Rfe1 $5 {[%cal Rd5e6]} Nf4 29. Qxf7+ Rxf7 30. Kf1 $15) 28... Rfd8 {[%emt 0:06:36]} 29. Qe4 {[%emt 0:00:43]} Nf8 {[%emt 0:00:56]} 30. Rxd8 {[%emt 0:00:40]} Rxd8 {[%emt 0:00:05]} 31. Rc1 {[%emt 0:00:12]} Rc8 {[%emt 0:01:04]} 32. Bd4 {[%emt 0:00:49]} Ng6 {[%emt 0:00:38]} 33. Rb1 {[%emt 0:00:56]} Re8 {[%emt 0:01:12]} (33... c3 $5 {[%cal Rc3c2]} 34. Rc1 Re8 $11) 34. Qc6 {[%emt 0:00:46]} Nf4 {[%emt 0:00:30] [#] aiming for ...Ne2+.} 35. Kf1 {[%emt 0:00:35]} Re6 {[%emt 0:00:56]} 36. Qc8+ {[%emt 0:00:35]} ({Much worse is} 36. Rb8+ Kh7 37. Qb7 (37. Qc8 $2 Qe7 $19) 37... Re7 $17) 36... Re8 {[%emt 0:00:31]} 37. Qc6 $36 {[%emt 0:00:23][%mdl 2048] White has some pressure.} Nd3 {[%emt 0:00:29]} 38. Bc3 {[%emt 0:00:29] Hoping for Rb7.} Re6 {[%emt 0:00:27]} (38... Re7 $1 $11) 39. Rb8+ $16 {[%emt 0:00:30]} Kh7 {[%emt 0:00:04]} 40. Rb7 {[%emt 0:00:32]} Rxc6 {[%emt 0:01:02]} 41. Rxf7 {[%emt 0:30:10]} Kg6 {[%emt 0:06:36] This costs Black the game.} (41... Kg8 $16 {was necessary.} 42. Rxg7+ Kf8) 42. Rxg7+ $18 {[%emt 0:00:00]} Kf5 {[%emt 0:00:08]} 43. Rf7+ {[%emt 0:00:00]} Kg6 {[%emt 0:00:11]} 44. Rb7 {[%emt 0:00:00]} Nc1 $2 {[%emt 0:05:01]} (44... Kf5 45. Rh7 Kg6 46. Rg7+ Kf5) 45. g4 {[%emt 0:00:00] Weighted Error Value: White=0.15 (very precise) /Black=0.24 (precise)} 1-0

[Event "Czech Open-GM 2022"]
[Site "Pardubice"]
[Date "2022.07.23"]
[Round "2.10"]
[White "Strebkovs, Andrejs"]
[Black "Akesson, Ralf"]
[Result "1/2-1/2"]
[ECO "B22"]
[WhiteElo "2283"]
[BlackElo "2427"]
[Annotator "TA"]
[PlyCount "151"]
[EventDate "2022.07.22"]
[EventType "swiss"]
[EventCountry "CZE"]
[SourceTitle "playchess.com"]
[Source "ChessBase"]
[SourceQuality "1"]
[TimeControl "40/5400+30:1800+30"]

{[%evp 25,151,0,0,0,0,3,12,0,0,-12,0,-11,-11,-29,-9,-24,-5,-10,-2,-18,-13,-6,-12,-10,-10,-11,-14,-16,-12,-25,-20,-24,-16,-34,-18,-13,-14,-12,-12,-23,-16,-24,-12,-12,-12,-12,-12,-12,-13,-10,-5,-7,-1,-8,-15,-9,0,0,0,-9,-8,-8,-8,-24,-7,-22,-3,-25,-17,-15,0,0,0,-20,-44,-29,-2,-33,0,-95,-79,-188,-69,-70,-16,-16,-16,-16,-16,-16,-8,-8,0,-16,-16,-1596,-16,-16,-16,-16,-16,-43,-16,-16,-16,-16,-16,-16,-16,-62,-62,-62,-62,-62,-67,-67,-76,-76,-8,-8,0,0,0,0,0,0,0,-8]} 1. e4 {[%emt 0:00:09]} c5 {[%emt 0:00:55]} 2. c3 {[%emt 0:00:27]} d5 {[%emt 0:00:26]} 3. exd5 {[%emt 0:00:11]} Qxd5 {[%emt 0:00:10]} 4. Nf3 {[%emt 0:01:26]} Nf6 {[%emt 0:00:20]} 5. d4 {[%emt 0:00:30]} Bg4 {[%emt 0:00:21]} 6. Be2 {[%emt 0:01:13]} e6 {[%emt 0:00:42]} 7. O-O {[%emt 0:01:01]} Nc6 {[%emt 0:01:34]} 8. Be3 {[%emt 0:01:18]} cxd4 {[%emt 0:00:55]} 9. Nxd4 {[%emt 0:05:39]} Bxe2 {[%emt 0:00:32]} 10. Qxe2 {[%emt 0:00:41]} Nxd4 {[%emt 0:02:23]} 11. Bxd4 {[%emt 0:00:27]} Be7 {[%emt 0:00:13]} 12. Nd2 {[%emt 0:02:28][%cal Bb1d2,Bd2c4,Bc4d6][%mdl 32]} O-O {[%emt 0:00:29]} 13. Rfd1 {[%emt 0:03:49]} Qc6 {[%emt 0:04:54]} 14. Qc4 {[%emt 0:04:15] B22: Sicilian: 2 c3.} Qxc4 {[%emt 0:02:10]} 15. Nxc4 {[%emt 0:00:06] [#]} Rfc8 $146 {[%emt 0:01:29]} ({Predecessor:} 15... Nd5 16. Na5 b6 17. Nc6 Rfc8 18. Nxe7+ Nxe7 19. f3 b5 20. a4 a6 21. Ra3 Nd5 22. axb5 axb5 {½-½ (65) Can,E (2464)-Darini,P (2263) Vung Tau 2008}) 16. Bxf6 {[%emt 0:15:22]} Bxf6 {[%emt 0:01:36]} 17. Nd6 {[%emt 0:00:33][%csl LRb7,LRc8]} Rc7 {[%emt 0:01:26]} 18. Nb5 {[%emt 0:02:48]} Rc6 {[%emt 0:02:56]} 19. Nd6 {[%emt 0:05:28]} Rb8 {[%emt 0:12:04]} 20. Kf1 {[%emt 0:03:28]} Be7 {[%emt 0:02:46]} 21. Ne4 {[%emt 0:02:03]} Rc7 {[%emt 0:01:03]} 22. Rd2 {[%emt 0:04:13]} Kf8 {[%emt 0:08:40]} 23. Rad1 {[%emt 0:01:04]} b5 {[%emt 0:02:23]} 24. Rd7 {[%emt 0:07:11]} Rbb7 {[%emt 0:00:27]} 25. Rxc7 {[%emt 0:02:30]} Rxc7 $11 {[%emt 0:00:07][%mdl 4096] Endgame KRB-KRN} 26. Ke2 {[%emt 0:02:59]} f5 {[%emt 0:05:51]} 27. Ng3 {[%emt 0:02:37]} g6 {[%emt 0:01:37]} 28. f3 {[%emt 0:01:44]} Ke8 {[%emt 0:00:43]} 29. Kd3 {[%emt 0:02:47]} Rc6 {[%emt 0:03:43]} 30. Ne2 {[%emt 0:01:26]} e5 {[%emt 0:01:06]} 31. Kc2 {[%emt 0:02:13]} a6 {[%emt 0:02:15]} 32. Rd5 {[%emt 0:01:05]} Bd6 {[%emt 0:02:39]} 33. Kb3 {[%emt 0:03:35]} Ke7 {[%emt 0:05:25]} 34. a4 {[%emt 0:03:56]} Rb6 {[%emt 0:02:13]} 35. axb5 {[%emt 0:01:44]} axb5 {[%emt 0:00:09]} 36. Kc2 {[%emt 0:01:57]} Ke6 {[%emt 0:04:40]} 37. Rd1 {[%emt 0:00:46]} Ra6 {[%emt 0:00:36]} 38. Re1 {[%emt 0:03:44]} Kd7 {[%emt 0:01:02]} 39. Rd1 {[%emt 0:00:27]} Ra4 {[%emt 0:01:24]} 40. h3 {[%emt 0:02:14]} h5 {[%emt 0:01:35]} 41. Nc1 {[%emt 0:34:34]} Kc6 {[%emt 0:35:21]} 42. Nb3 {[%emt 0:02:30]} Bc7 {[%emt 0:05:59]} 43. Re1 {[%emt 0:00:00]} g5 {[%emt 0:00:00]} 44. Ra1 {[%emt 0:00:00]} Rh4 {[%emt 0:00:00]} 45. Rf1 {[%emt 0:00:00]} Bb6 {[%emt 0:00:00]} 46. Re1 {[%emt 0:00:00]} e4 {[%emt 0:00:00]} 47. fxe4 {[%emt 0:00:00]} fxe4 {[%emt 0:00:00]} 48. Nd2 {[%emt 0:00:00]} Kd5 {[%emt 0:00:00]} 49. g3 {[%emt 0:00:00] Inhibits Rf4.} Rxh3 {[%emt 0:00:00]} 50. Nxe4 {[%emt 0:00:00]} g4 {[%emt 0:00:00]} 51. b3 {[%emt 0:00:00]} Bc7 {[%emt 0:00:00]} 52. Re3 {[%emt 0:00:00]} (52. Nf6+ $11 {keeps the balance.} Kd6 53. Ne8+ Kc6 54. Re6+ Kd7 55. Nxc7) 52... h4 {[%emt 0:01:47][%cal Rh4g3]} 53. Nf6+ {[%emt 0:00:04]} (53. Re2 $17) 53... Kd6 {[%emt 0:01:56]} (53... Kc6 $19 54. Nxg4 (54. Re6+ $2 Kb7 $19) 54... Rxg3 55. Re6+ Kb7) 54. Nxg4 $15 {[%emt 0:00:36]} Rxg3 {[%emt 0:01:00]} (54... hxg3 $15 55. Re2 Rh8) 55. Rxg3 $11 {[%emt 0:02:25]} hxg3 $15 {[%emt 0:00:04] KB-KN} 56. Ne3 {[%emt 0:00:14]} Ke5 {[%emt 0:00:14]} 57. Kd3 {[%emt 0:00:40]} Kf4 {[%emt 0:00:26]} 58. Ke2 {[%emt 0:00:30] [#] aiming for Nd5+.} (58. Nd5+ Kf3 59. Ne3 (59. Nxc7 $2 g2 $19) 59... Bd8 $19) 58... Ke4 {[%emt 0:00:09] Against Nd5} 59. Ng2 {[%emt 0:02:35]} Be5 {[%emt 0:01:47]} 60. Kd2 {[%emt 0:00:44][%mdl 8192]} (60. c4 $11) 60... Bg7 $2 {[%emt 0:01:38]} ({Black should try} 60... Kf3 $19 61. Ne1+ Kf2 62. Nd3+ Kf1 63. Nxe5 g2) 61. Ne1 $11 {[%emt 0:01:40]} Bf6 {[%emt 0:00:23]} 62. c4 {[%emt 0:01:09]} b4 {[%emt 0:01:00]} 63. Ke2 {[%emt 0:01:26]} Be7 {[%emt 0:03:13]} (63... Kd4 $5 {[%cal Rd4c3]} 64. Kd2 (64. Kf3 $2 Be5 $19) 64... Bg5+ 65. Ke2 Bd8 $17) 64. Nf3 {[%emt 0:00:35]} Bc5 {[%emt 0:02:09]} 65. Ng5+ {[%emt 0:01:08]} Kf5 {[%emt 0:00:28]} 66. Nf3 {[%emt 0:00:16]} Kf4 {[%emt 0:01:26] [#] ( -> ...g2)} 67. Nh4 {[%emt 0:00:25]} (67. Ne1 $11 Ke4 68. Nd3) 67... Ke4 $15 {[%emt 0:00:16]} 68. Ng2 {[%emt 0:00:15]} Kd4 $1 {[%emt 0:02:04]} 69. Kd2 $1 {[%emt 0:00:07]} Be7 {[%emt 0:01:12] Strongly threatening ...Bg5+.} 70. Ne1 $1 {[%emt 0:00:18]} Bg5+ $1 {[%emt 0:00:21]} 71. Ke2 {[%emt 0:00:26] Threatens to win with Nf3+.} Kc3 {[%emt 0:02:48]} ({Better is} 71... Bf4 $17 {And now ...Kc3 would win.} 72. Ng2 (72. Kf3 $2 Bb8 $19) 72... Bc7) 72. Kf3 $1 $11 {[%emt 0:01:20] The position is equal.} Bd2 {[%emt 0:01:37]} 73. c5 {[%emt 0:00:34][%cal Oc5c6] Hoping for c6!} Bg5 {[%emt 0:01:07]} (73... Bxe1 $2 74. c6 $18) 74. c6 {[%emt 0:00:16] White wants to mate with c7.} Bd8 {[%emt 0:00:04]} 75. Kxg3 {[%emt 0:00:11]} Kxb3 {[%emt 0:00:20]} 76. Nd3 {[%emt 0:00:06] Weighted Error Value: White=0.27 (precise) /Black=0.27 (precise)} 1/2-1/2

[Event "Czech Open-GM 2022"]
[Site "Pardubice"]
[Date "2022.07.23"]
[Round "2.11"]
[White "Dobrowolski, Piotr"]
[Black "Smolik, Jachym"]
[Result "1/2-1/2"]
[ECO "B12"]
[WhiteElo "2423"]
[BlackElo "2291"]
[Annotator "TA"]
[PlyCount "86"]
[EventDate "2022.07.22"]
[EventType "swiss"]
[EventCountry "CZE"]
[SourceTitle "playchess.com"]
[Source "ChessBase"]
[SourceQuality "1"]
[TimeControl "40/5400+30:1800+30"]

{[%evp 9,86,3,10,0,0,3,38,29,33,19,75,42,56,39,80,80,76,73,86,70,106,106,109,75,485,469,483,483,423,128,461,454,1014,325,320,158,161,32,14,0,0,-10,-10,-9,-9,-46,-40,-58,-67,-116,-115,-108,-108,-99,-85,-85,-70,-80,-15,-29,0,-81,-89,-95,-49,-52,-58,-78,-91,-90,-84,-147,-135,-146,-147,-152,-150,-137,-69]} 1. e4 {[%emt 0:00:06]} c6 {[%emt 0:00:05]} 2. d4 {[%emt 0:00:22]} d5 {[%emt 0:00:04]} 3. e5 {[%emt 0:00:18]} c5 {[%emt 0:00:34]} 4. dxc5 {[%emt 0:00:10]} e6 {[%emt 0:00:06]} 5. Qg4 {[%emt 0:00:10]} h5 {[%emt 0:03:52]} 6. Qf4 {[%emt 0:00:13] B12: Caro-Kann: Advance Variation.} Bxc5 {[%emt 0:02:29]} 7. Bd3 {[%emt 0:02:13]} Nh6 {[%emt 0:03:31]} 8. Nf3 {[%emt 0:06:02] White is slightly better.} Nc6 {[%emt 0:04:02]} 9. O-O {[%emt 0:06:23] [#]} Bb6 $146 {[%emt 0:19:45]} (9... Nb4 $11) ({Predecessor:} 9... Nb4 10. Qg3 Kf8 11. Be3 Nxd3 12. cxd3 d4 13. Bxh6 Rxh6 14. Nbd2 b6 15. Ng5 Bb7 {1-0 (33) Oleksienko,M (2587)-Polivanov,A (2396) Lvov 2007}) 10. Qg3 {[%emt 0:11:45]} Kf8 {[%emt 0:01:28][%cal Oh5h4]} 11. Nc3 {[%emt 0:04:21][%cal Bb1c3,Bc3e2,Be2d4][%mdl 32]} a6 {[%emt 0:05:47][%cal Oh5h4]} 12. Ne2 {[%emt 0:11:16]} Bc7 {[%emt 0:01:24][%cal Oh5h4]} 13. Bf4 {[%emt 0:04:01]} Nb4 {[%emt 0:06:55]} 14. Ned4 {[%emt 0:01:07]} Nxd3 {[%emt 0:00:48]} 15. cxd3 {[%emt 0:00:05]} Bb6 {[%emt 0:00:59][%cal Oh5h4]} 16. Rac1 {[%emt 0:08:55] 0x0.001f23c9947bdp-1022s more active pieces. The black rooks are badly placed.} Nf5 $2 {[%emt 0:09:35][%mdl 8192]} (16... h4 $16 {is a better chance.} 17. Qh3 Kg8) 17. Nxf5 $18 {[%emt 0:00:41]} exf5 {[%emt 0:00:02]} 18. Bg5 {[%emt 0:05:36] Prevents h4.} Qd7 {[%emt 0:12:05] [#]} 19. Qh4 $2 {[%emt 0:09:57]} (19. Bf6 $1 $18 {[%mdl 512] and the rest is easy.} gxf6 20. exf6) 19... Qb5 $2 {[%emt 0:05:25][%mdl 8192]} (19... a5 $16 {is tougher.} 20. Rc2 Qe8) 20. a4 {[%emt 0:00:53]} Qb3 {[%emt 0:00:56]} (20... Qxb2 $142 21. Rb1 Bxf2+ 22. Qxf2 Qxf2+ 23. Rxf2 Kg8) 21. Nd2 $2 {[%emt 0:01:31]} (21. Bd8 {Threatening mate with Qe7+.} f6 {[#]} 22. Bxf6 $1 {[%mdl 512]}) 21... Qxb2 {[%emt 0:00:19]} 22. Be3 {[%emt 0:03:52] Inhibits Qd4.} (22. Nf3 $18 {is the precise move to win.}) 22... Ba5 $16 {[%emt 0:06:34]} 23. Rc5 {[%emt 0:00:41]} Qb4 $14 {[%emt 0:00:07]} 24. Qxb4 {[%emt 0:17:46]} Bxb4 {[%emt 0:00:01]} 25. Rc7 {[%emt 0:00:03]} d4 {[%emt 0:10:50]} 26. Bg5 {[%emt 0:00:06]} Ba5 {[%emt 0:00:52]} 27. Rc4 {[%emt 0:00:44]} Be6 {[%emt 0:00:16][%cal Bc8e6,Be6d5,Bd5c6][%mdl 32]} 28. Rxd4 {[%emt 0:00:13]} Bc3 {[%emt 0:00:09] A strong pair of Bishops.} 29. Rd6 {[%emt 0:00:20]} (29. Rh4 $15 {should be considered.}) 29... Bxe5 $17 {[%emt 0:00:15]} 30. Rb6 {[%emt 0:00:01]} Bd5 {[%emt 0:01:50]} 31. Rc1 {[%emt 0:01:27]} Bc6 {[%emt 0:01:05]} 32. Nf3 {[%emt 0:00:52]} Bc7 {[%emt 0:00:21]} 33. Rb4 {[%emt 0:00:01]} f6 {[%emt 0:00:24]} (33... Bd6 $17 34. Rb6 Re8) 34. Be3 $1 $11 {[%emt 0:00:21]} Ba5 {[%emt 0:00:40]} 35. Rf4 {[%emt 0:00:17]} (35. Rbb1 $1 $11 {remains equal.}) 35... g6 $36 {[%emt 0:00:50][%mdl 2048] Black is on the roll.} 36. Nd4 {[%emt 0:00:14]} Bd7 {[%emt 0:01:48]} (36... Be8 $17 37. Nb3 Bd8) 37. Nb3 $15 {[%emt 0:03:58]} Bd8 {[%emt 0:00:02][%cal Ba5d8,Bd8e7,Be7c5][%mdl 32]} 38. Nc5 {[%emt 0:00:15]} Bc6 {[%emt 0:00:17]} 39. Rd4 {[%emt 0:01:22][%cal Oc5b7]} Be7 {[%emt 0:00:47]} 40. h4 {[%emt 0:01:09]} (40. Nb3 $142) 40... Kf7 $17 {[%emt 0:02:19] Black is clearly better.} 41. a5 {[%emt 0:04:48]} Rac8 {[%emt 0:05:26]} 42. Rdc4 {[%emt 0:00:21]} Bd5 {[%emt 0:00:42]} 43. R4c2 {[%emt 0:00:41]} Bxc5 {[%emt 0:09:35] What a bad dream for White.  Weighted Error Value: White=0.39/Black=0.43} (43... Rhe8 $17 44. f3 g5) 1/2-1/2

[Event "Czech Open-GM 2022"]
[Site "Pardubice"]
[Date "2022.07.23"]
[Round "2.12"]
[White "Savitha Shri B"]
[Black "Smith, Bryan"]
[Result "1-0"]
[ECO "B90"]
[WhiteElo "2278"]
[BlackElo "2421"]
[Annotator "TA"]
[PlyCount "61"]
[EventDate "2022.07.22"]
[EventType "swiss"]
[EventCountry "CZE"]
[SourceTitle "playchess.com"]
[Source "ChessBase"]
[SourceQuality "1"]
[TimeControl "40/5400+30:1800+30"]

{[%evp 13,61,18,25,0,0,0,0,-10,-31,-12,-18,-12,0,0,0,0,0,0,0,0,0,-109,0,0,0,0,0,0,0,0,183,196,176,198,266,274,503,507,490,491,479,464,833,279,398,288,29994,29995,29997,29998]} 1. e4 {[%emt 0:00:12]} c5 {[%emt 0:00:10]} 2. Nf3 {[%emt 0:00:10]} d6 {[%emt 0:00:27]} 3. d4 {[%emt 0:00:07]} cxd4 {[%emt 0:00:06]} 4. Nxd4 {[%emt 0:00:05]} Nf6 {[%emt 0:00:05]} 5. Nc3 {[%emt 0:00:06]} a6 {[%emt 0:00:20]} 6. Be3 {[%emt 0:00:07]} e5 {[%emt 0:00:10]} 7. Nb3 {[%emt 0:00:05]} Be6 {[%emt 0:00:06]} 8. Qf3 {[%emt 0:00:06] B90: Sicilian Najdorf: Unusual White 6th moves, 6 Be3 Ng4 and 6 Be3 e5.} Nbd7 {[%emt 0:01:25]} 9. h3 {[%emt 0:00:08]} Rc8 {[%emt 0:00:30]} 10. g4 {[%emt 0:05:26] [#] The position is equal.} Rxc3 $1 {[%emt 0:02:48]} 11. bxc3 {[%emt 0:00:22]} d5 {[%emt 0:01:03] Threatening ...Qc7.} 12. Bd3 {[%emt 0:04:11]} Qc7 {[%emt 0:03:20]} 13. O-O {[%emt 0:07:20]} h5 {[%emt 0:01:59]} 14. g5 $1 {[%emt 0:03:39]} (14. exd5 $2 hxg4 15. Qg3 Bxd5 $19) 14... dxe4 {[%emt 0:01:20]} 15. Bxe4 {[%emt 0:00:09]} Nxe4 {[%emt 0:00:15]} 16. Qxe4 {[%emt 0:00:03]} Bxh3 {[%emt 0:04:14] [#]} 17. g6 $146 {[%emt 0:12:43]} ({Predecessor:} 17. Rfe1 g6 18. Nd2 Be7 19. Rab1 b6 20. Nc4 b5 21. Nb6 Nxb6 22. Bxb6 Qxb6 23. Qxe5 {½-½ (92) Savitha Shri,B (2230)-Djoric,D (2276) Novi Sad 2022}) 17... f5 {[%emt 0:45:43]} (17... Bxf1 $17 18. gxf7+ Kxf7 19. Qd5+ Kf6 20. Qf3+ Kg6 21. Qe4+ (21. Kxf1 $2 Nf6 $19) 21... Kf7 22. Qd5+ Kf6 23. Rxf1 Qc6) 18. Qd5 $11 {[%emt 0:08:48]} f4 {[%emt 0:00:36]} 19. Bxf4 {[%emt 0:14:43]} exf4 {[%emt 0:00:14]} (19... Bxf1 $2 20. Qf7+ Kd8 21. Bg5+ Be7 22. Bxe7+ Kc8 23. Qxg7 $18) 20. Rfe1+ $40 {[%emt 0:02:11][%cal Bf1e1,Be1e8,Be8f8,Bf8f7][%mdl 160] White has some attack.} Kd8 {[%emt 0:00:11] Hoping for ...Qb6.} 21. Na5 $1 {[%emt 0:20:44]} Qb6 {[%emt 0:13:38] [#]} (21... Qxc3 $2 22. Nxb7+ (22. Rad1 Bc5 $11) 22... Kc7 23. Na5 $18) (21... Ba3 $1 $11) 22. Rab1 $1 $18 {[%emt 0:00:59][%mdl 64] Skewer} Qxg6+ {[%emt 0:00:38]} 23. Kh2 {[%emt 0:00:06] Chess con chili.} f3 {[%emt 0:04:38]} (23... Qg2+ {keeps fighting.} 24. Qxg2 Bxg2) 24. Nxb7+ {[%emt 0:00:19]} Kc8 $2 {[%emt 0:03:42] [#]} (24... Kc7 25. Qc4+ {[#]} (25. Qxf3 Bg4 $15) 25... Bc5 $1) 25. Re8+ $3 {[%emt 0:02:30][%mdl 512]} Kc7 {[%emt 0:00:01][%csl Gf3,Gh3][%cal Rg6g2]} 26. Qa5+ {[%emt 0:06:08]} ({Less strong is} 26. Qc4+ Nc5 27. Qf4+ (27. Kxh3 $2 {is a self mate.} Qg2+ 28. Kh4 g5#) 27... Bd6 28. Qxd6+ Qxd6+ 29. Nxd6 Rh6 $18) 26... Nb6 {[%emt 0:00:03][%csl Gf3,Gh3][%cal Rg6g2]} 27. Qe5+ {[%emt 0:00:19]} Kc6 {[%emt 0:02:10]} (27... Bd6 $142 28. Qxd6+ Qxd6+ 29. Nxd6 Rh6 30. Kxh3 Rxd6 31. Re7+ Kc6 32. Rxg7 a5) 28. Na5+ {[%emt 0:01:02]} (28. Rg1 $142 Qf6 29. Qe4+ Kc7 30. Kxh3) 28... Kd7 {[%emt 0:00:44][%csl Gf3,Gh3][%cal Rg6g2]} 29. Rd1+ {[%emt 0:00:44]} Qd6 $2 {[%emt 0:00:11]} (29... Bd6 $18 30. Rxd6+ Qxd6 31. Qxd6+ Kxd6 32. Rxh8 Bg4) 30. Rxf8 {[%emt 0:00:51][%csl Gd1][%cal Re5d6][%mdl 64] Pin} Qxd1 {[%emt 0:00:19]} 31. Rf7+ {[%emt 0:00:04] Weighted Error Value: White=0.34/Black=0.64} 1-0

[Event "Czech Open-GM 2022"]
[Site "Pardubice"]
[Date "2022.07.23"]
[Round "2.13"]
[White "Lalic, Bogdan"]
[Black "Winkelman, Albert"]
[Result "1/2-1/2"]
[ECO "E04"]
[WhiteElo "2412"]
[BlackElo "2278"]
[Annotator "TA"]
[PlyCount "43"]
[EventDate "2022.07.22"]
[EventType "swiss"]
[EventCountry "CZE"]
[SourceTitle "playchess.com"]
[Source "ChessBase"]
[SourceQuality "1"]
[TimeControl "40/5400+30:1800+30"]

{[%evp 10,43,6,13,22,22,33,21,28,23,50,27,38,39,47,44,41,40,79,24,39,39,35,0,0,0,32,24,42,19,21,20,27,0,0,0]} 1. d4 {[%emt 0:00:05]} Nf6 {[%emt 0:00:15]} 2. c4 {[%emt 0:00:09]} e6 {[%emt 0:00:12]} 3. Nf3 {[%emt 0:00:14]} d5 {[%emt 0:00:35]} 4. g3 {[%emt 0:00:15]} dxc4 {[%emt 0:00:17]} 5. Bg2 {[%emt 0:00:11]} Bb4+ {[%emt 0:00:15]} 6. Bd2 {[%emt 0:00:14]} c5 {[%emt 0:00:19] E04: Open Catalan: 5 Nf3.} 7. Bxb4 {[%emt 0:00:36]} cxb4 {[%emt 0:00:15]} 8. a3 {[%emt 0:00:14]} O-O {[%emt 0:06:27]} 9. axb4 {[%emt 0:00:39]} Qb6 {[%emt 0:02:01]} 10. Na3 {[%emt 0:03:48] [#]} Qxb4+ $146 {[%emt 0:06:00]} ({Predecessor:} 10... Bd7 11. Ne5 Bc6 12. O-O Bxg2 13. Kxg2 Nc6 14. Naxc4 Qxb4 15. Qd3 Qb5 16. Rfc1 Qd5+ {0-1 (78) Jacobson,B (2351)-Banawa,J (2401) Saint Louis 2018}) 11. Qd2 {[%emt 0:00:05]} Nc6 {[%emt 0:02:09]} 12. Qxb4 $1 {[%emt 0:01:25]} Nxb4 {[%emt 0:00:11]} 13. O-O {[%emt 0:00:04]} Bd7 {[%emt 0:02:04]} 14. Nxc4 {[%emt 0:00:13]} (14. Ne5 $16) 14... Bc6 {[%emt 0:00:29]} 15. Rfc1 {[%emt 0:00:57]} Rfc8 {[%emt 0:07:23]} 16. Nfe5 {[%emt 0:04:56]} Bxg2 {[%emt 0:07:48]} 17. Kxg2 {[%emt 0:00:04][%cal Oe5f7] And now Nxf7! would win.} Rd8 {[%emt 0:00:18]} 18. e3 {[%emt 0:00:43]} Ne8 {[%emt 0:02:32]} 19. Na5 {[%emt 0:02:11]} (19. Rc3 $5 {[%cal Rc3b3]}) 19... f6 {[%emt 0:04:29]} 20. Nf3 {[%emt 0:02:59]} ({But not} 20. Nxb7 Rdb8 21. Nc5 fxe5 22. dxe5 a5 $17) 20... Nd6 {[%emt 0:02:32]} 21. Nd2 {[%emt 0:01:48]} Rac8 {[%emt 0:03:46]} 22. Rc3 {[%emt 0:02:11] Weighted Error Value: White=0.14 (very precise) /Black=0.11 (very precise)} 1/2-1/2